[Event "Lliga Catalana 2024"]
[Site "Catalonia"]
[Date "2024.01.27"]
[Round "2.9"]
[White "Pares Vives, Natalia"]
[Black "Mompel Ferruz, Xavier"]
[Result "0-1"]
[ECO "B51"]
[WhiteElo "2146"]
[BlackElo "2148"]
[Annotator "NA RC"]
[PlyCount "50"]
[EventDate "2024.01.18"]
[EventType "team-tourn"]
[EventCountry "ESP"]
[SourceTitle "playchess.com"]
[Source "ChessBase"]
[SourceQuality "1"]
[TimeControl "5400+30"]

1. e4 {[%emt 0:00:10]} c5 {[%emt 0:00:14]} 2. Nf3 {[%emt 0:00:20]} d6 {[%emt 0:00:08]} 3. Bb5+ {[%emt 0:00:47]} Nd7 {[%emt 0:00:13]} 4. O-O {[%emt 0:04:57]} a6 {[%emt 0:00:32]} 5. Bxd7+ {[%emt 0:03:38]} Bxd7 {[%emt 0:00:16]} 6. d4 {[%emt 0:01:56]} cxd4 {[%emt 0:02:33]} 7. Nxd4 {[%emt 0:01:47]} Nf6 {[%emt 0:01:57]} 8. Nc3 {[%emt 0:02:01]} e5 {[%emt 0:09:16]} 9. Nb3 {[%emt 0:14:26]} h6 {[%emt 0:00:36]} 10. Qe2 {[%emt 0:00:12]} Be7 {[%emt 0:02:31]} 11. f4 {[%emt 0:01:44]} b5 {[%emt 0:04:18]} 12. a3 {[%emt 0:20:06]} Be6 {[%emt 0:01:32]} 13. Qf3 {[%emt 0:00:09]} Rc8 {[%emt 0:04:00]} 14. f5 {[%emt 0:01:31]} Bd7 {[%emt 0:02:36]} 15. Re1 {[%emt 0:05:11]} Bc6 {[%emt 0:03:07]} 16. Qg3 {[%emt 0:00:07]} Kf8 {[%emt 0:01:59]} 17. Bd2 {[%emt 0:04:45]} a5 {[%emt 0:07:47]} 18. Rad1 {[%emt 0:19:13]} b4 {[%emt 0:02:13]} 19. axb4 {[%emt 0:00:09]} axb4 {[%emt 0:00:05]} 20. Nd5 {[%emt 0:00:15]} Nxd5 {[%emt 0:02:38]} 21. exd5 {[%emt 0:00:09]} Bh4 {[%emt 0:00:16]} 22. Qg4 {[%emt 0:02:30]} Bxe1 {[%emt 0:00:39]} 23. Bxe1 {[%emt 0:00:06]} Bd7 {[%emt 0:01:46]} 24. Qxb4 {[%emt 0:11:41]} Bxf5 {[%emt 0:01:20]} 25. c4 {[%emt 0:00:04]} Bc2 {[%emt 0:00:46]} 0-1

[Event "Lliga Catalana 2024"]
[Site "Catalonia"]
[Date "2024.01.27"]
[Round "2.9"]
[White "Triadu Cassa, Jordi"]
[Black "Claramunt Bassegoda, Marcel"]
[Result "1-0"]
[ECO "B15"]
[WhiteElo "2107"]
[BlackElo "2089"]
[Annotator "NA RC"]
[PlyCount "93"]
[EventDate "2024.01.18"]
[EventType "team-tourn"]
[EventCountry "ESP"]
[SourceTitle "playchess.com"]
[Source "ChessBase"]
[SourceQuality "1"]
[TimeControl "5400+30"]

1. e4 {[%emt 0:00:03]} c6 {[%emt 0:00:26]} 2. d4 {[%emt 0:00:10]} d5 {[%emt 0:00:26]} 3. Nc3 {[%emt 0:00:12]} dxe4 {[%emt 0:00:19]} 4. Nxe4 {[%emt 0:00:06]} Nf6 {[%emt 0:00:22]} 5. Nxf6+ {[%emt 0:00:12]} exf6 {[%emt 0:00:11]} 6. c3 {[%emt 0:00:25]} Bd6 {[%emt 0:00:39]} 7. Bd3 {[%emt 0:00:07]} O-O {[%emt 0:00:37]} 8. Ne2 {[%emt 0:00:05]} Re8 {[%emt 0:00:39]} 9. O-O {[%emt 0:00:34]} Qc7 {[%emt 0:15:42]} 10. Ng3 {[%emt 0:00:13]} g6 {[%emt 0:02:18]} 11. Ne4 {[%emt 0:07:09]} Be7 {[%emt 0:00:27]} 12. Re1 {[%emt 0:08:58]} Be6 {[%emt 0:03:13]} 13. Nc5 {[%emt 0:06:17]} Bxc5 {[%emt 0:04:27]} 14. dxc5 {[%emt 0:00:33]} Nd7 {[%emt 0:01:29]} 15. Be3 {[%emt 0:03:59]} Rad8 {[%emt 0:20:57]} 16. Qc2 {[%emt 0:10:09]} Nf8 {[%emt 0:02:34]} 17. b4 {[%emt 0:04:57]} Kg7 {[%emt 0:03:31]} 18. a4 {[%emt 0:01:07]} h5 {[%emt 0:02:25]} 19. c4 {[%emt 0:06:35]} Bc8 {[%emt 0:02:04]} 20. b5 {[%emt 0:01:13]} h4 {[%emt 0:06:01]} 21. Qc3 {[%emt 0:13:13]} Ne6 {[%emt 0:09:47]} 22. Bf1 {[%emt 0:04:28]} Rh8 {[%emt 0:01:28]} 23. Rad1 {[%emt 0:01:07]} g5 {[%emt 0:07:27]} 24. b6 {[%emt 0:06:52]} Qb8 {[%emt 0:00:48]} 25. Rxd8 {[%emt 0:00:09]} Rxd8 {[%emt 0:00:27]} 26. Bc1 {[%emt 0:00:11]} a6 {[%emt 0:02:08]} 27. Bd3 {[%emt 0:02:54]} Rh8 {[%emt 0:04:48]} 28. Bf5 {[%emt 0:02:55]} Nf4 {[%emt 0:04:35]} 29. Bb2 {[%emt 0:03:14]} Nh5 {[%emt 0:01:46]} 30. Bc2 {[%emt 0:01:41]} Be6 {[%emt 0:00:51]} 31. g3 {[%emt 0:04:27]} hxg3 {[%emt 0:00:35]} 32. fxg3 {[%emt 0:00:00]} Qd8 {[%emt 0:00:43]} 33. Bd1 {[%emt 0:02:54]} g4 {[%emt 0:01:23]} 34. Be2 {[%emt 0:03:23]} Qe7 {[%emt 0:00:30]} 35. Qe3 {[%emt 0:00:11]} Rh6 {[%emt 0:00:52]} 36. Bxg4 {[%emt 0:00:31]} Rh7 {[%emt 0:00:54]} 37. Bd4 {[%emt 0:02:26]} Kf8 {[%emt 0:00:07]} 38. Bf5 {[%emt 0:02:43]} Rh8 {[%emt 0:00:19]} 39. Bd3 {[%emt 0:02:37]} Qd7 {[%emt 0:00:13]} 40. Be2 {[%emt 0:00:34]} Qd8 {[%emt 0:00:10]} 41. Rf1 {[%emt 0:00:26]} Qd7 {[%emt 0:00:53]} 42. Rf2 {[%emt 0:00:53]} Rh7 {[%emt 0:00:07]} 43. Bxh5 Rxh5 {[%emt 0:00:02]} 44. Rxf6 {[%emt 0:00:52]} Bxc4 {[%emt 0:01:08]} 45. Rd6 {[%emt 0:00:00]} Qe7 {[%emt 0:00:07]} 46. Qxe7+ {[%emt 0:00:30]} Kxe7 {[%emt 0:00:01]} 47. Bf6+ {[%emt 0:00:01]} 1-0

[Event "Lliga Catalana 2024"]
[Site "Catalonia"]
[Date "2024.01.27"]
[Round "2.10"]
[White "Martin Gonzalez, Angel"]
[Black "Chigaeva, Anastasia"]
[Result "1-0"]
[ECO "E57"]
[WhiteElo "2195"]
[BlackElo "2106"]
[Annotator "TA"]
[PlyCount "51"]
[EventDate "2024.01.18"]
[EventType "team-tourn"]
[EventCountry "ESP"]
[SourceTitle "playchess.com"]
[Source "ChessBase"]
[SourceQuality "1"]
[TimeControl "5400+30"]

{[%evp 24,51,0,0,0,0,120,46,38,37,89,43,63,51,219,226,220,31,139,35,141,127,878,678,29990,29991,29992,29993,29993,29994]} 1. e4 {[%emt 0:00:04]} e6 {[%emt 0:00:16]} 2. d4 {[%emt 0:00:07]} d5 {[%emt 0:00:08]} 3. Nd2 {[%emt 0:00:11]} c5 {[%emt 0:00:17]} 4. c3 {[%emt 0:00:37]} cxd4 {[%emt 0:03:28]} 5. cxd4 {[%emt 0:00:21]} dxe4 {[%emt 0:03:32]} 6. Nxe4 {[%emt 0:00:10]} Bb4+ {[%emt 0:02:07]} 7. Nc3 {[%emt 0:00:09]} Nc6 {[%emt 0:00:53]} 8. Nf3 {[%emt 0:00:10]} Nf6 {[%emt 0:00:55]} 9. Bd3 {[%emt 0:00:17]} O-O {[%emt 0:04:46]} 10. O-O {[%emt 0:01:21]} b6 {[%emt 0:09:54]} 11. Re1 {[%emt 0:09:34]} Bb7 {[%emt 0:02:02]} 12. a3 {[%emt 0:00:11]} Be7 {[%emt 0:01:46]} 13. Bc2 {[%emt 0:02:34]} Rc8 {[%emt 0:08:49]} 14. Qd3 {[%emt 0:01:33][%cal Od4d5]} h6 {[%emt 0:13:16]} (14... Na5 $11 {remains equal.}) 15. Bf4 {[%emt 0:13:53]} (15. Bxh6 $1 $16 {And now Bg5 would win.} gxh6 16. Rxe6) 15... Re8 $14 {[%emt 0:03:29] White is slightly better.} 16. Rad1 {[%emt 0:02:48]} (16. Bg3 $5) 16... a6 {[%emt 0:08:23]} (16... Bd6 $1 $14 17. Be5 Bxe5 18. dxe5 Qxd3 19. Bxd3 Nd5) 17. Ne5 {[%emt 0:05:28] White has more active pieces.} (17. Ne4 $16 {Strongly threatening Nxf6+.} Kf8 18. Nxf6 Bxf6 19. d5) 17... Nxe5 {[%emt 0:07:40]} 18. Bxe5 {[%emt 0:00:22]} Bd6 $2 {[%emt 0:08:04] [#]} ({Black should play} 18... Bd5 $14) 19. Bxf6 $1 $18 {[%emt 0:10:47]} Qxf6 {[%emt 0:02:18]} 20. d5 $2 {[%emt 0:00:08]} (20. Qh7+ $18 Kf8 21. Be4 Rxc3 22. bxc3 Bxe4 23. Qxe4 (23. Rxe4 Ke7 $18)) 20... Bc5 {[%emt 0:06:32]} (20... Rcd8 $14) 21. Qh7+ $16 {[%emt 0:02:00]} Kf8 {[%emt 0:00:01]} 22. Ne4 $40 {[%emt 0:00:10][%mdl 128] White has strong attack. Chess con chili.} Qxb2 {[%emt 0:06:27][%mdl 8192]} (22... Qf5 $16 23. Qh8+ Ke7 24. Nxc5 (24. Qxg7 Bxf2+ 25. Nxf2 Rxc2 $18) 24... Rxh8 25. Bxf5 (25. d6+ Kf8 $18) 25... bxc5 (25... Rxc5 $2 {is the wrong capture.} 26. dxe6 Bc8 27. exf7+ Kxf7 28. Be4 $18)) 23. Nxc5 {[%emt 0:07:04]} Rxc5 {[%emt 0:01:42] [#]} 24. dxe6 $1 {[%emt 0:00:28] White mates.} fxe6 {[%emt 0:03:06]} (24... Re5 25. Qh8+) 25. Rd7 {[%emt 0:01:52][%cal Rh7h8]} Re7 {[%emt 0:00:23]} 26. Rd8+ {[%emt 0:00:07] Weighted Error Value: White=0.45/Black=1.00.  Loses game:     	---       	Black=2      Missed win:     	White=1     	---        Mistake:       	White=2     	Black=3      Inaccurate:     	---       	Black=2      OK:         	White=2     	Black=2      Best:        	White=1     	---        Strong:       	White=1     	---} 1-0

[Event "Lliga Catalana 2024"]
[Site "Catalonia"]
[Date "2024.01.27"]
[Round "2.10"]
[White "Marzo Pie, Xavier"]
[Black "Terry Cuellar, Luis Antonio"]
[Result "0-1"]
[ECO "A55"]
[WhiteElo "2043"]
[BlackElo "2094"]
[Annotator "NA RC"]
[PlyCount "122"]
[EventDate "2024.01.18"]
[EventType "team-tourn"]
[EventCountry "ESP"]
[SourceTitle "playchess.com"]
[Source "ChessBase"]
[SourceQuality "1"]
[TimeControl "5400+30"]

1. d4 {[%emt 0:00:04]} Nf6 {[%emt 0:03:19]} 2. c4 {[%emt 0:00:23]} d6 {[%emt 0:00:30]} 3. Nc3 {[%emt 0:00:08]} Nbd7 {[%emt 0:00:01]} 4. e4 {[%emt 0:01:26]} e5 {[%emt 0:00:08]} 5. Nge2 {[%emt 0:05:11]} Be7 {[%emt 0:00:41]} 6. g3 {[%emt 0:00:22]} exd4 {[%emt 0:01:50]} 7. Nxd4 {[%emt 0:00:14]} Nc5 {[%emt 0:00:38]} 8. Bg2 {[%emt 0:00:47]} a5 {[%emt 0:00:54]} 9. O-O {[%emt 0:01:21]} O-O {[%emt 0:00:43]} 10. h3 {[%emt 0:06:41]} Re8 {[%emt 0:00:31]} 11. Re1 {[%emt 0:01:34]} c6 {[%emt 0:01:29]} 12. Qc2 {[%emt 0:05:46]} Qc7 {[%emt 0:02:35]} 13. Bf4 {[%emt 0:03:32]} Nfd7 {[%emt 0:00:47]} 14. Nf5 {[%emt 0:10:11]} Bf8 {[%emt 1:23:24]} 15. Rad1 {[%emt 0:03:37]} Ne5 {[%emt 0:00:00]} 16. b3 {[%emt 0:00:18]} a4 {[%emt 0:00:00]} 17. Be3 {[%emt 0:06:09]} Bxf5 {[%emt 0:00:00]} 18. exf5 {[%emt 0:00:17]} axb3 {[%emt 0:00:00]} 19. axb3 {[%emt 0:00:06]} Qa5 {[%emt 0:00:00]} 20. Bd2 {[%emt 0:19:15]} Qa3 {[%emt 0:00:00]} 21. Rb1 {[%emt 0:02:55]} Ncd3 {[%emt 0:00:00]} 22. Re3 {[%emt 0:02:37]} Nb4 {[%emt 0:00:00]} 23. Qe4 {[%emt 0:01:30]} Nd7 {[%emt 0:00:00]} 24. Qxe8 {[%emt 0:05:32]} Rxe8 {[%emt 0:00:00]} 25. Rxe8 {[%emt 0:00:03]} Nf6 {[%emt 0:00:00]} 26. Rc8 {[%emt 0:00:52]} Nd3 {[%emt 0:00:00]} 27. Bg5 {[%emt 0:02:07]} Qc5 {[%emt 0:00:00]} 28. Be3 {[%emt 0:05:12]} Qxf5 {[%emt 0:00:00]} 29. Rd8 {[%emt 0:00:19]} Qa5 {[%emt 0:00:00]} 30. Rxf8+ {[%emt 0:03:10]} Kxf8 {[%emt 0:00:00]} 31. Na4 {[%emt 0:00:39]} Qb4 {[%emt 0:00:00]} 32. Bf1 {[%emt 0:04:31]} Ne5 {[%emt 0:00:00]} 33. Bg2 {[%emt 0:01:31]} Nxc4 {[%emt 0:00:00]} 34. Bf4 {[%emt 0:00:35]} Nd5 {[%emt 0:00:25]} 35. Bxd5 {[%emt 0:01:23]} cxd5 {[%emt 0:00:07]} 36. Nc3 {[%emt 0:02:58]} Ne5 {[%emt 0:10:28]} 37. Nxd5 {[%emt 0:01:09]} Qd4 {[%emt 0:00:00]} 38. Ne3 {[%emt 0:01:58]} Qe4 {[%emt 0:00:00]} 39. Rd1 {[%emt 0:00:16]} g5 {[%emt 0:00:00]} 40. Bxe5 {[%emt 0:00:21]} dxe5 {[%emt 0:00:35]} 41. g4 {[%emt 0:01:18]} Qf3 {[%emt 0:00:40]} 42. Rd5 {[%emt 0:01:18]} f6 {[%emt 0:00:21]} 43. Rb5 {[%emt 0:00:06]} h5 {[%emt 0:00:50]} 44. gxh5 {[%emt 0:00:29]} Qxh3 {[%emt 0:00:34]} 45. Rxb7 {[%emt 0:00:08]} g4 {[%emt 0:00:21]} 46. Nf5 {[%emt 0:01:17]} Qxh5 {[%emt 0:00:42]} 47. Ng3 {[%emt 0:01:10]} Qg6 {[%emt 0:00:19]} 48. b4 {[%emt 0:00:39]} Qb1+ {[%emt 0:00:32]} 49. Kh2 {[%emt 0:00:26]} Qc2 {[%emt 0:00:24]} 50. Kg1 {[%emt 0:00:18]} Qc1+ {[%emt 0:00:35]} 51. Kh2 {[%emt 0:00:03]} Qc6 {[%emt 0:00:36]} 52. Rb8+ {[%emt 0:00:04]} Kf7 {[%emt 0:00:14]} 53. b5 {[%emt 0:00:23]} Qc7 {[%emt 0:00:17]} 54. Rh8 {[%emt 0:00:55]} Qb6 {[%emt 0:00:43]} 55. Kg2 {[%emt 0:00:48]} Qb7+ {[%emt 0:00:30]} 56. Kg1 {[%emt 0:00:08]} Qxb5 {[%emt 0:00:08]} 57. Rh5 {[%emt 0:00:04]} Kg6 {[%emt 0:00:35]} 58. Kg2 {[%emt 0:00:16]} Qd5+ {[%emt 0:00:12]} 59. Kg1 {[%emt 0:00:05]} Qd1+ {[%emt 0:00:08]} 60. Kg2 {[%emt 0:00:06]} Qf3+ {[%emt 0:00:18]} 61. Kg1 {[%emt 0:00:10]} Qxg3+ {[%emt 0:00:23]} 0-1

[Event "Lliga Catalana 2024"]
[Site "Catalonia"]
[Date "2024.02.03"]
[Round "3.1"]
[White "Garriga Cazorla, Pere"]
[Black "Magem Badals, Jordi"]
[Result "1/2-1/2"]
[ECO "B41"]
[WhiteElo "2466"]
[BlackElo "2498"]
[Annotator "ChessBase"]
[PlyCount "69"]
[EventDate "2024.01.18"]
[EventType "team-tourn"]
[EventCountry "ESP"]
[SourceTitle "playchess.com"]
[Source "ChessBase"]
[SourceQuality "1"]
[TimeControl "5400+30"]

1. e4 {[%emt 1:31:00]} c5 {[%emt 0:06:51]} 2. Nf3 {[%emt 0:00:00]} e6 {[%emt 0:00:07]} 3. d4 {[%emt 0:00:00]} cxd4 {[%emt 0:00:07]} 4. Nxd4 {[%emt 0:00:00]} a6 {[%emt 0:00:05]} 5. c4 {[%emt 0:00:00]} Nf6 {[%emt 0:00:25]} 6. Nc3 {[%emt 0:00:00]} Bb4 {[%emt 0:00:08]} 7. Qd3 {[%emt 0:03:00]} d5 {[%emt 0:19:05]} 8. exd5 {[%emt 0:00:00]} exd5 {[%emt 0:00:06]} 9. Be2 {[%emt 0:00:00]} O-O {[%emt 0:00:11]} 10. O-O {[%emt 0:00:00]} Nc6 {[%emt 1:08:25]} 11. Nxc6 {[%emt 0:00:00]} bxc6 {[%emt 0:00:00]} 12. cxd5 {[%emt 0:00:00]} Nxd5 {[%emt 0:00:00]} 13. Nxd5 {[%emt 0:00:00]} Qxd5 {[%emt 0:00:00]} 14. Qg3 {[%emt 0:00:00]} Bd6 {[%emt 0:00:00]} 15. Bf4 {[%emt 0:00:00]} Bxf4 {[%emt 0:00:00]} 16. Qxf4 {[%emt 0:00:00]} Be6 {[%emt 0:03:00]} 17. Rfc1 {[%emt 0:00:00]} Qd7 {[%emt 0:00:00]} 18. Rc3 {[%emt 0:00:00]} Bd5 {[%emt 0:00:00]} 19. Rg3 {[%emt 0:00:00]} Rfe8 {[%emt 0:00:00]} 20. Qd4 {[%emt 0:00:00]} g6 {[%emt 0:00:00]} 21. Bf1 {[%emt 0:00:00]} Re4 {[%emt 0:00:00]} 22. Qd2 {[%emt 0:00:00]} Qe7 {[%emt 0:00:00]} 23. Ra3 {[%emt 0:00:00]} Qb4 {[%emt 0:00:00]} 24. Rd1 {[%emt 0:00:00]} Qxd2 {[%emt 0:00:00]} 25. Rxd2 {[%emt 0:00:00]} a5 {[%emt 0:00:00]} 26. f3 {[%emt 0:00:00]} Rb4 {[%emt 0:00:00]} 27. Be2 {[%emt 0:00:00]} Kf8 {[%emt 0:00:00]} 28. Kf2 {[%emt 0:00:00]} Ke7 {[%emt 0:00:00]} 29. Bd1 {[%emt 0:00:00]} Kf6 {[%emt 0:00:00]} 30. g3 {[%emt 0:00:00]} g5 {[%emt 0:00:00]} 31. Ke3 {[%emt 0:00:00]} a4 {[%emt 0:00:00]} 32. b3 {[%emt 0:00:00]} Re8+ {[%emt 0:00:00]} 33. Kf2 {[%emt 0:00:00]} axb3 {[%emt 0:00:00]} 34. Bxb3 {[%emt 0:00:00]} Bxb3 {[%emt 0:00:00]} 35. Rxb3 {[%emt 0:00:00]} 1/2-1/2

[Event "Lliga Catalana 2024"]
[Site "Catalonia"]
[Date "2024.02.03"]
[Round "3.2"]
[White "Alsina Leal, Daniel"]
[Black "Sanchez Aguilar, Arnau"]
[Result "1-0"]
[ECO "C58"]
[WhiteElo "2495"]
[BlackElo "2125"]
[Annotator "ChessBase"]
[PlyCount "125"]
[EventDate "2024.01.18"]
[EventType "team-tourn"]
[EventCountry "ESP"]
[SourceTitle "playchess.com"]
[Source "ChessBase"]
[SourceQuality "1"]
[TimeControl "5400+30"]

1. e4 {[%emt 0:00:04]} e5 {[%emt 0:00:23]} 2. Nf3 {[%emt 0:00:22]} Nc6 {[%emt 0:00:24]} 3. Bc4 {[%emt 0:00:30]} Nf6 {[%emt 0:00:37]} 4. Ng5 {[%emt 0:00:39]} d5 {[%emt 0:00:40]} 5. exd5 {[%emt 0:00:21]} Na5 {[%emt 0:00:38]} 6. Bb5+ {[%emt 0:00:19]} c6 {[%emt 0:00:29]} 7. dxc6 {[%emt 0:00:25]} bxc6 {[%emt 0:00:06]} 8. Bd3 {[%emt 0:00:25]} Nd5 {[%emt 0:00:58]} 9. Nf3 {[%emt 0:00:48]} Bd6 {[%emt 0:00:49]} 10. O-O {[%emt 0:01:09]} O-O {[%emt 0:00:36]} 11. Re1 {[%emt 0:00:57]} f5 {[%emt 0:00:52]} 12. Nxe5 {[%emt 0:01:06]} Qf6 {[%emt 0:00:07]} 13. Nf3 {[%emt 0:00:16]} g5 {[%emt 0:00:25]} 14. c4 {[%emt 0:01:05]} Nf4 {[%emt 0:00:09]} 15. Bf1 {[%emt 1:29:34]} g4 {[%emt 0:00:21]} 16. d4 {[%emt 0:00:00]} gxf3 {[%emt 0:00:31]} 17. Qxf3 {[%emt 0:00:00]} Ne6 {[%emt 0:00:29]} 18. Qc3 {[%emt 0:00:00]} Qh4 {[%emt 0:02:00]} 19. h3 {[%emt 0:00:00]} c5 {[%emt 0:01:44]} 20. Na3 {[%emt 0:00:00]} Nxd4 {[%emt 0:01:16]} 21. Nb5 {[%emt 0:00:00]} Nb7 {[%emt 0:00:29]} 22. b4 {[%emt 0:00:00]} a5 {[%emt 0:00:46]} 23. bxc5 {[%emt 0:00:00]} Bxc5 {[%emt 0:01:50]} 24. g3 {[%emt 0:00:00]} Qf6 {[%emt 0:09:56]} 25. Bb2 {[%emt 0:00:00]} Nf3+ {[%emt 0:02:27]} 26. Qxf3 {[%emt 0:00:00]} Qxb2 {[%emt 0:00:02]} 27. Bg2 {[%emt 0:00:00]} Qg7 {[%emt 0:06:22]} 28. Rad1 {[%emt 0:00:00]} Ra6 {[%emt 0:01:27]} 29. Qd5+ {[%emt 0:00:00]} Kh8 {[%emt 0:00:27]} 30. Qe5 {[%emt 0:00:00]} f4 {[%emt 0:11:34]} 31. g4 {[%emt 0:00:01]} f3 {[%emt 0:00:49]} 32. Qxg7+ {[%emt 0:06:42]} Kxg7 {[%emt 0:00:06]} 33. Bf1 {[%emt 0:01:28]} Rf4 {[%emt 0:04:53]} 34. Nc7 {[%emt 0:00:45]} Rh6 {[%emt 0:00:54]} 35. Nd5 {[%emt 0:00:21]} Rf7 {[%emt 0:00:47]} 36. Re5 {[%emt 0:00:35]} Rg6 {[%emt 0:00:41]} 37. Bd3 {[%emt 0:00:23]} Re6 {[%emt 0:00:39]} 38. Rg5+ {[%emt 0:00:37]} Kf8 {[%emt 0:01:07]} 39. Rf5 {[%emt 0:00:05]} Rh6 {[%emt 0:01:37]} 40. Rxf7+ {[%emt 0:00:24]} Kxf7 {[%emt 0:00:01]} 41. Nf4 {[%emt 0:00:32]} Bd6 {[%emt 0:02:57]} 42. Nh5 {[%emt 0:00:19]} Nc5 {[%emt 0:00:37]} 43. Bxh7 {[%emt 0:00:56]} Be5 {[%emt 0:00:44]} 44. Rd5 {[%emt 0:00:36]} Bd6 {[%emt 0:01:58]} 45. Bc2 {[%emt 0:00:15]} Re6 {[%emt 0:00:37]} 46. Rd1 {[%emt 0:00:51]} Bc7 {[%emt 0:03:13]} 47. Bf5 {[%emt 0:00:24]} Re8 {[%emt 0:00:04]} 48. Bxc8 {[%emt 0:00:41]} Rxc8 {[%emt 0:00:01]} 49. Rd5 {[%emt 0:00:13]} Rd8 {[%emt 0:02:58]} 50. Rf5+ {[%emt 0:00:05]} Kg8 {[%emt 0:00:10]} 51. Nf6+ {[%emt 0:00:36]} Kg7 {[%emt 0:00:53]} 52. Nd5 {[%emt 0:00:09]} Bd6 {[%emt 0:00:12]} 53. Rxf3 {[%emt 0:00:25]} Rb8 {[%emt 0:00:05]} 54. Ne3 {[%emt 0:01:19]} Be5 {[%emt 0:00:27]} 55. Rf5 {[%emt 0:00:38]} Rb1+ {[%emt 0:01:20]} 56. Kg2 {[%emt 0:00:07]} Nd3 {[%emt 0:00:02]} 57. Kf3 {[%emt 0:00:51]} Bc3 {[%emt 0:02:23]} 58. Rd5 {[%emt 0:00:34]} Nc1 {[%emt 0:01:13]} 59. Rd1 {[%emt 0:00:31]} a4 {[%emt 0:02:07]} 60. c5 {[%emt 0:00:24]} a3 {[%emt 0:01:10]} 61. c6 {[%emt 0:00:06]} Be5 {[%emt 0:00:05]} 62. Nc4 {[%emt 0:00:25]} Rb2 {[%emt 0:02:21]} 63. Rxc1 {[%emt 0:00:29]} 1-0

[Event "Lliga Catalana 2024"]
[Site "Catalonia"]
[Date "2024.02.03"]
[Round "3.2"]
[White "Garcia Ramos, Daniel"]
[Black "Iermito, Sebastian"]
[Result "0-1"]
[ECO "C70"]
[WhiteElo "2436"]
[BlackElo "2503"]
[Annotator "ChessBase"]
[PlyCount "58"]
[EventDate "2024.01.18"]
[EventType "team-tourn"]
[EventCountry "ESP"]
[SourceTitle "playchess.com"]
[Source "ChessBase"]
[SourceQuality "1"]
[TimeControl "5400+30"]

1. e4 {[%emt 0:00:03]} e5 {[%emt 0:00:05]} 2. Nf3 {[%emt 0:00:09]} Nc6 {[%emt 0:00:03]} 3. Bb5 {[%emt 0:00:17]} g6 {[%emt 0:00:13]} 4. c3 {[%emt 0:00:25]} a6 {[%emt 0:01:05]} 5. Ba4 {[%emt 0:00:19]} Bg7 {[%emt 0:00:14]} 6. d4 {[%emt 0:02:02]} b5 {[%emt 1:31:50]} 7. Bb3 {[%emt 0:05:04]} exd4 {[%emt 0:00:00]} 8. cxd4 {[%emt 0:00:10]} Nge7 {[%emt 0:00:00]} 9. d5 {[%emt 0:00:56]} Na5 {[%emt 0:00:00]} 10. Bd2 {[%emt 0:00:46]} Nxb3 {[%emt 0:00:00]} 11. Qxb3 {[%emt 0:00:13]} c5 {[%emt 0:00:00]} 12. Bc3 {[%emt 0:02:12]} f6 {[%emt 0:03:00]} 13. d6 {[%emt 0:18:03]} Nc6 {[%emt 0:00:00]} 14. Qd5 {[%emt 0:00:15]} b4 {[%emt 0:00:00]} 15. Bd2 {[%emt 0:00:44]} Bb7 {[%emt 0:00:00]} 16. Qxc5 {[%emt 0:22:46]} f5 {[%emt 0:02:00]} 17. exf5 {[%emt 0:23:23]} O-O {[%emt 0:00:30]} 18. fxg6 {[%emt 0:21:43]} Qe8+ {[%emt 0:00:00]} 19. Be3 {[%emt 0:00:00]} Bxb2 {[%emt 0:00:00]} 20. gxh7+ {[%emt 0:00:00]} Kh8 {[%emt 0:01:30]} 21. Nbd2 {[%emt 0:00:00]} Bxa1 {[%emt 0:00:00]} 22. O-O {[%emt 0:00:00]} Bg7 {[%emt 0:00:00]} 23. h4 {[%emt 0:02:30]} Ne5 {[%emt 0:00:00]} 24. Ng5 {[%emt 0:00:30]} Qh5 {[%emt 0:02:00]} 25. g3 {[%emt 0:00:00]} Rf5 {[%emt 0:00:00]} 26. Qxb4 {[%emt 0:00:00]} Bc6 {[%emt 0:01:00]} 27. Qb3 {[%emt 0:01:30]} Qg4 {[%emt 0:00:00]} 28. Kh2 {[%emt 0:00:30]} Raf8 {[%emt 0:00:00]} 29. f3 {[%emt 0:00:30]} Bxf3 {[%emt 0:00:00]} 0-1